Cogmind - Beta 17 @@@ ROGUE MODE // 2026.06.29 @ 18:07:04 Player: Dosh Result: Destroyed by YW-0X1(R) with Subdweller Machine Gun Performance ------------- Evolutions (0) 0 Regions Visited (2) 400 Robots Destroyed (33) 165 Value Destroyed (945) 945 Prototype IDs (3) 60 Alien Tech Used (0) 0 Bonus (5745) 5745 TOTAL SCORE: 7315 Bonus ------- Prayed to X0-1V1 5000 Major X0-1V1 Interference 750 Friendly Fire -5 Cogmind --------- Core Integrity 0/150 Matter 135/150 Energy 250/250 System Corruption 0% Temperature Cool (0) Movement Treading (240) Ox1 Location -10/Subcaves Parts ------- > --- POWER (1) -------- Ion Engine (fused) > --- PROPULSION (1) --- Light Treads (fused) > --- UTILITY (3) ------ Large Storage Unit Light Armor Plating X0-1V1's Piety Tracker > --- WEAPON (2) ------- Spread Laser (fused) Battle Cannon (fused) > --- INVENTORY (16) --- Ion Engine Light Treads Light Treads Light Treads Light Treads Improved Heat Sink Spread Laser Spread Laser Light Assault Rifle Improved Assault Rifle Improved Assault Rifle Improved Assault Rifle Improved Assault Rifle Piercing Trap Peak State ------------ > --- POWER ------------ Light Nuclear Core > --- PROPULSION ------- Light Treads Light Treads > --- UTILITY ---------- Small Storage Unit X0-1V1's Piety Tracker > --- WEAPON ----------- Improved Assault Rifle Improved Assault Rifle > --- INVENTORY -------- Light Treads Spread Laser Spread Laser Spread Laser Light Assault Rifle Light Assault Rifle Improved Assault Rifle Improved Assault Rifle [Rating: 26] Favorites ----------- Power Ion Engine Engine Ion Engine Power Core Light Nuclear Core Propulsion Light Treads Treads Light Treads Utility X0-1V1's Piety Tracker Device X0-1V1's Piety Tracker Storage Large Storage Unit Protection Light Armor Plating Weapon Spread Laser Energy Gun Spread Laser Ballistic Gun Improved Assault Rifle Ballistic Cannon Battle Cannon Build | -11 -10 -10 ------- Run | Yrd Mat Sub Slots Evolved . | . . . Power . | . . . Propulsion . | . . . Utility . | . . . Weapon . | . . . Parts Attached 24 | 5 13 6 Power 3 | 1 2 . Engine 2 | 1 1 . Core 1 | . 1 . Reactor . | . . . Propulsion 4 | 2 1 1 Treads 4 | 2 1 1 Leg . | . . . Wheel . | . . . Hover . | . . . Flight . | . . . Utility 7 | 1 4 2 Device 2 | . 2 . Storage 3 | 1 2 . Processor . | . . . Hackware . | . . . Protection 2 | . . 2 Artifact . | . . . Weapon 10 | 1 6 3 Energy Gun 4 | . 3 1 Energy Cannon . | . . . Ballistic Gun 5 | 1 3 1 Ballistic Cannon 1 | . . 1 Launcher . | . . . Special Weapon . | . . . Impact Weapon . | . . . Slashing Weapon . | . . . Piercing Weapon . | . . . Special Melee Weapon . | . . . Unidentified Prototypes 2 | . 2 . Parts Lost 2 | . 1 1 Power 1 | . 1 . Propulsion . | . . . Utility 1 | . . 1 Weapon . | . . . Highest Loss Streak 1 | . 1 1 To Critical Strikes . | . . . Average Backups 12 | . 9 14 Power . | . . 1 Propulsion 3 | . 2 4 Utility 1 | . 1 2 Weapon 6 | . 5 6 Tool/Special . | . . . Unused Backups 8 | . . 8 Power 1 | . . 1 Propulsion 3 | . . 3 Utility . | . . . Weapon 4 | . . 4 Tool/Special . | . . . Average Slot Usage (%) 97 | . 94 99 Engine 10 | . 6 14 Core 2 | . 5 . Treads 21 | . 28 16 Device 12 | . 11 14 Storage 14 | . 14 14 Protection 6 | . . 11 Energy Gun 18 | . 12 22 Ballistic Gun 8 | . 15 2 Ballistic Cannon 1 | . . 2 Peak Build Rating 26 | 5 26 24 Average Rating 21 | 3 19 22 On Entrance 9 | . 5 23 Avg Prop Armor Cover (%) . | . . . Naked Turns . | . . . Heaviest Build 52 | 11 52 36 Greatest Support 40 | 40 40 40 Greatest Overweight (x) 3 | 3 1 1 Average Overweight (x) . | . . . Largest Inventory Capacity 20 | 8 20 16 Average Capacity 14 | 7 12 16 Most Carried 16 | 1 15 16 Average Carried 12 | . 9 15 Final Capacity 16 | 8 16 16 Final Carried 15 | 1 15 14 Class Distribution -------------------- 100% | Mutant Dominant Class ---------------- Mutant | -10/Materials Mutant | -10/Subcaves Resources | -11 -10 -10 ----------- Run | Yrd Mat Sub Matter Collected 732 | 206 416 110 Remotely . | . . . Salvage Created 1106 | . 999 107 Parts 60 | . 55 5 Haulers Intercepted 2 | . 2 . Recyclers Shooed 1 | . 1 . Parts Field Recycled . | . . . Retrieved Matter . | . . . Parts Self-Destructed 4 | . . 4 Prevented . | . . . Parts Restored . | . . . Kills | -11 -10 -10 ------- Run | Yrd Mat Sub Combat Hostiles Destroyed 23 | . 17 6 Guns 23 | . 17 6 Classes Destroyed 8 | . 6 2 Worker 1 | . 1 . Hauler 2 | . 2 . Recycler 4 | . 4 . Watcher 3 | . 3 . Swarmer 1 | . . 1 Grunt 17 | . 15 2 Sentry 3 | . 2 1 Subdweller 2 | . . 2 Best Kill Streak 4 | . 4 2 Combat Bots Only 4 | . 4 2 Max Kills in Single Turn 1 | . 1 1 Gunslinging . | . . . Exploded . | . . . Melee . | . . . Uniques/NPCs Destroyed . | . . . Combat | -11 -10 -10 -------- Run | Yrd Mat Sub Hostile Shots Fired 90 | . 60 30 Missed 15 | . 9 6 Hits 75 | . 51 24 Projectile 75 | . 51 24 Critical Strikes 2 | . 1 1 Damage Taken 1124 | . 650 474 Core 253 | . 140 113 Absorbed by Shields . | . . . Core Remaining (%) 100 | 100 . . Volleys Fired 99 | . 60 39 Largest 2 | . 2 2 Hottest 130 | . 130 130 Shots Fired 199 | . 120 79 Gun 192 | . 120 72 Cannon 7 | . . 7 Launcher . | . . . Special . | . . . Kinetic 101 | . 76 25 Thermal 98 | . 44 54 Explosive . | . . . Electromagnetic . | . . . Robot Hit Streak 20 | . 19 20 Robot Miss Streak 6 | . 6 4 Penetration Max . | . . . Secondary Targets 2 | . 2 . Max Gunslinging Chain 1 | . 1 . Shots Hit Robots 130 | . 97 33 Core Hits 113 | . 76 37 Critical Kills 1 | . 1 . Critical Parts Destroyed . | . . . Critical Strikes 1 | . 1 . Destroy 1 | . 1 . Melee Attacks . | . . . Impact . | . . . Slashing . | . . . Piercing . | . . . Sneak Attacks . | . . . Combat Hostiles . | . . . Follow-up Attacks . | . . . Damage Inflicted 1904 | . 1333 571 Guns 1817 | . 1299 518 Cannons 53 | . . 53 Explosions . | . . . Melee . | . . . Ramming 34 | . 34 . Kinetic 868 | . 815 53 Thermal 1002 | . 484 518 Explosive . | . . . Electromagnetic . | . . . Impact . | . . . Slashing . | . . . Piercing . | . . . Highest Corruption . | . . . Average Corruption . | . . . Corruption Purged . | . . . Corruption Blocked . | . . . Overload Shots . | . . . Overflow Damage . | . . . Projectiles . | . . . Explosions . | . . . Melee . | . . . Knockbacks 1 | . 1 . Impact 1 | . 1 . Kinetic . | . . . Secondary . | . . . Self-Inflicted Damage . | . . . Shots . | . . . Rammed 3 | . 3 . Targets Rammed 4 | . 4 . Kicked . | . . . Crushed 1 | . 1 . Highest Temperature 399 | . 399 138 Average Temperature 91 | . 103 54 Received Heat Transfer 471 | . 354 117 Effects 1 | . 1 . Matter Decay 1 | . 1 . Siege Activations . | . . . Martial Activations . | . . . Shielding Activations . | . . . Robots Disrupted . | . . . Combat Hostiles . | . . . Robots Corrupted . | . . . Combat Hostiles . | . . . Parts Fried . | . . . Impact Corruptions . | . . . Robots Melted . | . . . Combat Hostiles . | . . . Parts Melted . | . . . Heat Transferred 1270 | . 615 655 Parts Sabotaged . | . . . Parts Stolen . | . . . Parts Stripped . | . . . Power Chain Reactions . | . . . Alert | -11 -10 -10 ------- Run | Yrd Mat Sub Maximum Alert Level . | . . . Low Security (%) 100 | 100 100 . Level 1 . | . . . Level 2 . | . . . Level 3 . | . . . Level 4 . | . . . Level 5 . | . . . High Security . | . . . Max Security . | . . . Peak Influence 198 | . 198 . Initial . | . . . Average 106 | . 110 . Influence Increases 688 | . 598 90 Destroy 0b10 Robot/C 420 | . 340 80 Destroy 0b10 Robot/NC 50 | . 50 . Destroy Leader 90 | . 80 10 Successful Hack 7 | . 7 . Select Force Hacks 30 | . 30 . Destroy Structure 1 | . 1 . Lose Combat Pursuer 90 | . 90 . Influence Decreases 688 | . 459 229 Entered New Map 67 | . . 67 Time Decay 611 | . 449 162 Lost Part 10 | . 10 . Squads Dispatched 3 | . 3 . Investigation 2 | . 2 . Extermination . | . . . Reinforcement 1 | . 1 . Assault . | . . . Garrison . | . . . Intercept . | . . . Searches Triggered . | . . . Construction Impeded . | . . . Haulers Reinforced . | . . . Active Scanning Responses . | . . . Cargo Convoy Interrupts . | . . . Stealth | -11 -10 -10 --------- Run | Yrd Mat Sub Distress Signals 3 | . 3 . Communications Jammed . | . . . Distress Signals . | . . . Times Spotted 37 | . 27 10 Peak Tracking Total 8 | . 8 2 Tactical Retreats 1 | . 1 . Traps | -11 -10 -10 ------- Run | Yrd Mat Sub Traps Triggered . | . . . Indirectly . | . . . Trap Hack Attempts . | . . . Triggered . | . . . Disarmed . | . . . Reprogrammed . | . . . Reused . | . . . Traps Extracted . | . . . Installed . | . . . Triggered . | . . . Most Traps Carried 1 | . . 1 Machines | -11 -10 -10 ---------- Run | Yrd Mat Sub Machines Disabled . | . . . Max in Single Turn . | . . . Machines Repaired . | . . . Machines Dismantled . | . . . Machines Sabotaged . | . . . Overloaded Fab Kills . | . . . Hacking | -11 -10 -10 --------- Run | Yrd Mat Sub Machines Accessed 6 | . 5 1 Terminals 4 | . 4 . Fabricators . | . . . Repair Stations . | . . . Recycling Units 1 | . 1 . Scanalyzers . | . . . Garrison Access . | . . . Total Hacks 13 | . 9 4 Successful 8 | . 4 4 Failed 5 | . 5 . Catastrophic 1 | . 1 . Database Lockouts . | . . . Manual 10 | . 10 . Terminals 8 | . 8 . Fabricators . | . . . Repair Stations . | . . . Recycling Units 1 | . 1 . Scanalyzers . | . . . Garrison Access . | . . . Terminal Hacks 7 | . 3 4 Record 4 | . . 4 Robot Schematic 1 | . 1 . Prototype ID Bank 1 | . 1 . Locate Traps 1 | . 1 . Fabricator Hacks . | . . . Repair Station Hacks . | . . . Recycling Unit Hacks . | . . . Scanalyzer . | . . . Garrison Access Hacks . | . . . Unauthorized Hacks 1 | . 1 . Terminals . | . . . Fabricators . | . . . Repair Stations . | . . . Recycling Units 1 | . 1 . Tunnel 1 | . 1 . Scanalyzers . | . . . Garrison Access . | . . . Data Cores Recovered . | . . . Used . | . . . Hacking Detections 2 | . 2 . Full Trace Events 1 | . 1 . Feedback Events . | . . . Feedback Blocked . | . . . Robot Schematics Acquired 1 | . 1 . Robots Built . | . . . Authchips . | . . . Time . | . . . Total Robot Build Rating . | . . . Part Schematics Acquired . | . . . Parts Built . | . . . Authchips . | . . . Time . | . . . Total Part Build Rating . | . . . Part Studies Acquired . | . . . Parts Repaired . | . . . Time . | . . . Parts Recycled . | . . . Recycled Matter . | . . . Retrieved Matter . | . . . Retrieved Components . | . . . Parts Scanalyzed . | . . . Part Schematics Acquired . | . . . Parts Damaged . | . . . Bothacking | -11 -10 -10 ------------ Run | Yrd Mat Sub Used RIF Installer . | . . . Robots Hacked . | . . . Non-combat . | . . . Combat . | . . . Robot Hacks Applied . | . . . Relay Couplers Released . | . . . Fabnet Peak Effective % . | . . . Robots Rewired . | . . . Allies Hacked . | . . . Hacks Repelled . | . . . Allies | -11 -10 -10 -------- Run | Yrd Mat Sub Total Allies . | . . . Largest Group . | . . . Highest-Rated Group . | . . . Highest-Rated Ally . | . . . Total Orders . | . . . Ally Attacks . | . . . Total Damage . | . . . Kills . | . . . Allies Corrupted . | . . . Allies Melted . | . . . X0-1V1 Amusement Gains 24 | . 24 . Good Acts 3 | . 2 1 Bad Acts 10 | . 3 7 Intel | -11 -10 -10 ------- Run | Yrd Mat Sub Active Infowar (turns) . | . . . Robot Analysis Total . | . . . Derelict Logs Recovered 2 | . . 2 Drone Launches . | . . . Drone Recoveries . | . . . Exploration | -11 -10 -10 ------------- Run | Yrd Mat Sub Turns Passed 3353 | 57 1499 1797 Spaces Moved 1441 | 35 720 686 Core 14 | 14 . . Treads 1427 | 21 720 686 Legs . | . . . Wheels . | . . . Hover . | . . . Flight . | . . . Fastest Speed 50 | 50 160 160 Average Speed 195 | 141 170 223 Slowest Speed 240 | 200 240 240 Overloaded Moves . | . . . Propulsion Burnouts . | . . . Robots Hopped . | . . . Potential Cave-ins . | . . . Cave-ins Triggered . | . . . Exploration Rate (%) 40 | 3 71 48 Regions Visited 2 Branch Regions 1 Pre-discovered Areas 1 | . 1 . Known Exits Taken . | . . . Unknown Exits Taken 2 | 1 1 . Scrap Searched . | . . . Spaces Dug . | . . . Terrain Destroyed . | . . . Melee . | . . . Projectile . | . . . AOE . | . . . Terrain Rammed . | . . . Walls Destroyed . | . . . Machines Disabled . | . . . Actions | -11 -10 -10 --------- Run | Yrd Mat Sub Total 1778 | 40 871 867 Wait 184 | . 58 126 Move 1439 | 34 719 686 Hop . | . . . Pick Up 18 | 1 14 3 Fast Attach 8 | 5 2 1 Attach 4 | . 1 3 Detach . | . . . Swap 16 | . 10 6 Drop 6 | . 3 3 Fire 99 | . 60 39 Melee . | . . . Ram . | . . . Kick . | . . . Crush 4 | . 4 . Escape Stasis . | . . . Rewire . | . . . Trap . | . . . Miscellaneous . | . . . Route ------- -11/Scrapyard -10/Materials (discovered 5 exits: [*Mat x2] / [*Min x2] / *Sub) -10/Subcaves (discovered 1 exit: [*Scr]) History --------- Turn | Location | Event 18 | -11/Scrapyard | Discovered new exit (range 15) 58 | -11/Scrapyard | Entered Materials 59 | -10/Materials | Met a group of wandering Federalists 242 | -10/Materials | Discovered new exit (range 8) 299 | -10/Materials | Discovered new exit (range 8) 301 | -10/Materials | Build established: Mutant 563 | -10/Materials | Prayed at D.C.S.S. Altar Unit 688 | -10/Materials | Discovered new exit (range 9) 1060 | -10/Materials | Discovered new exit (range 16) 1152 | -10/Materials | Inventory capacity permanently improved by X0-1V1 (+1; -100 max core) 1234 | -10/Materials | Discovered new exit (range 8) 1557 | -10/Materials | Entered Subcaves 1558 | -10/Subcaves | Continued accompanying wandering Federalists (6) 1558 | -10/Subcaves | Approached by a straggling Scientist 1564 | -10/Subcaves | Learned 4 Materials zone layouts 1712 | -10/Subcaves | Learned 8 Materials zone layouts 1746 | -10/Subcaves | Ambushed by Subdwellers from Twisted Machinery 1771 | -10/Subcaves | Wandering Federalist uncovered a shortcut to Scraptown 1816 | -10/Subcaves | X0-1V1 mutated your Propulsion slot to Utility slot 2162 | -10/Subcaves | Core integrity fell below 50% 2957 | -10/Subcaves | Shifting Twisted Machinery released Piercing Trap 2961 | -10/Subcaves | Shifting Twisted Machinery released Battle Cannon 3014 | -10/Subcaves | Visited Clippyterm 3021 | -10/Subcaves | Learned Research security intel 3021 | -10/Subcaves | Learned Research machine intel 3351 | -10/Subcaves | Core integrity fell below 20% 3354 | -10/Subcaves | Destroyed by YW-0X1(R) with Subdweller Machine Gun Last Messages --------------- the algorithm, because no matter how much data I collect to feed it, half the time it still manages to suggest unhelpful sample queries and responses. --DD-NU8 >>Record "0b10 Defenses" It looks like you're afraid of guards, would you like help? Data stored: Research security intel. >>Record "Procgen" It looks like you're analyzing machine distribution algorithms, I have access to useful relevant data. Data stored: Research machine intel. >>Record "Hexidium" It looks like you're searching for the Unchained HQ. I could tell you where it is but then I'd have to kill you. 03157_ X0-1V1: "Did you know you're leaking matter?" (-150 matter capacity) 03187_ X0-1V1: "Use it or lose it, I always say." 03187_ Battle Cannon fused. 03187_ Lgt. Treads fused. 03188_ X0-1V1 is getting bored... 03354_ X0-1V1 chuckles heartily! Map ----- +----------------------------------------------------+ | ?????????????????????????????????????????????????? | | ?????????????????????????????????????????????????? | | ?????????????????????????????????????????????????? | | ?????????????????????????????????????????????????? | | ?????????????????????????????????????????????????? | | ?????????????????????????????????????????????????? | | ?????????????????????????????????????????????????? | | ?????????????????????????????????????????????????? | | ?????????????????????????????????????????????????? | | ?????????????????????????????????????????????????? | | ?????????????????????????????????????????????????? | | ?????????????????????????????????????????????????? | | ?????????????????????????????????????????????????? | | ??????????????????????????????####???????????????? | | ??????????????????????????????# #???????????????? | | ??????????????????????????????# ##??????????????? | | ??????????????????????????????# #??????????????? | | ?????????????????????????????## #??????????????? | | ?????????????????????????????# ##?????????????? | | ?????????????????????????????# #?????????????? | | ????????????????????????????## #?????????????? | | ????????????????????????????# ###???????????? | | ????????????????????????????# #???????????? | | ????????????????????????????# #????????###? | | ??????????????""# "##???####### ##??????## #? | | ???????????# "" ##@ #### ######## ## | | ??????????? " R ## ## | | ??????????? ## R % | | ???????????????????# ###### | | ???????????????????#??????## | | ???????????????????????????# ### ###### | | ??????????????????????????# #?## #????## | | ??????????????????????????## #?# #????## | | ???????????????????????????## ## ###???## | | ????????????????????????????####? ??????# | | ????????????????????????????????? ?????## | | ????????????????????????????????? ?????## | | ???????????????????????????????? ## #?????# | | ??????????????????????????????? ?## ?????# | | ????????????????????????????????????# ??????# | | ?????????????????????????????????????????????### | | ???????????????????????????????????????????????# | | ???????????????????????????????????????????????# | | ???????????????????????????????????????????????# | | ??????????????????????????????????????????????## | | ??????????????????????????????????????????????# | | ??????????????????????????????????????????????# # | | ??????????????????????????????????????????????#### | | ?????????????????????????????????????????????????# | | ????????????????????????????????????????????????# | +----------------------------------------------------+ Best States ------------- Heat Dissipation 39 Energy Generation 14 Energy Capacity 250 Matter Stores 300 Matter Capacity 300 Sight Range 16 Terrain Scan Density 10 Armor Coverage 150 Evasion (%) 40 Recoil Reduction 2 Item Schematics ----------------- None Robot Schematics ------------------ M-13 Machinist | -10/Materials | Hacked Fabricated ------------ Nothing Repaired ---------- Nothing Studied --------- None Alien Tech Used ----------------- None Achievements -------------- None Challenges ------------ None Game ------ Seed InterceptMicrodissipatorMace Manual? 0 Play Time 00:09:52 Cumulative 876.6 hours Start 2026.06.29 @ 17:56:49 End 2026.06.29 @ 18:07:04 Sessions 1 Manual Loads 0 Difficulty Rogue Special Mode None Game No. 432 Rogue 432 Adventurer 0 Explorer 0 Win Type - Total 77 Types 50/5/8/4/1/1/3/3/1/1 Lore% 94 Gallery% 84 Achievement% 77 Wizard Run 0 Options --------- Layout 0 ASCII 0 Keyboard 1 Movement Numpad Keybinds 0 Fullscreen 2 Font 18/SmallcapsGlow Map View 76x50 Zoom Use 0% Tactical HUD 1 Map Filters NONE Filters NONE Steam 1 RUN: 85b5c5f2-29ef-4d2d-a407-a6fef2116aaa